[Event "Hoogeveen Open 2023"]
[Site "Hoogeveen, Netherlands"]
[Date "2023.10.28"]
[Round "9.9"]
[White "Zecha, Oscar"]
[Black "Van Helvoort, Rob"]
[Result "0-1"]
[TimeControl "90min/40moves + 30min + 30sec/move"]
[WhiteFideId "1073826"]
[BlackFideId "1005596"]
[WhiteElo "1838"]
[BlackElo "2105"]

1. d4 {[%clk 01:30:56]} {[%emt 00:00:03]} e6 {[%clk 01:30:56]} {[%emt
00:00:05]} 2. e4 {[%clk 01:29:33]} {[%emt 00:01:53]} d5 {[%clk 01:31:10]}
{[%emt 00:00:16]} 3. e5 {[%clk 01:29:58]} {[%emt 00:00:05]} c5 {[%clk
01:31:36]} {[%emt 00:00:05]} 4. c3 {[%clk 01:30:23]} {[%emt 00:00:04]} Nc6
{[%clk 01:32:03]} {[%emt 00:00:03]} 5. Nf3 {[%clk 01:30:48]} {[%emt 00:00:04]}
Nge7 {[%clk 01:32:10]} {[%emt 00:00:24]} 6. Bd3 {[%clk 01:30:35]} {[%emt
00:00:42]} cxd4 {[%clk 01:31:39]} {[%emt 00:01:02]} 7. cxd4 {[%clk 01:26:52]}
{[%emt 00:04:13]} Nf5 {[%clk 01:31:26]} {[%emt 00:00:42]} 8. Bxf5 {[%clk
01:25:48]} {[%emt 00:01:34]} exf5 {[%clk 01:31:43]} {[%emt 00:00:13]} 9. O-O
{[%clk 01:24:49]} {[%emt 00:01:28]} Be7 {[%clk 01:28:23]} {[%emt 00:03:50]} 10.
Nc3 {[%clk 01:23:36]} {[%emt 00:01:44]} g5 {[%clk 01:23:10]} {[%emt 00:05:42]}
11. Ne1 {[%clk 01:10:21]} {[%emt 00:13:45]} f4 {[%clk 01:20:17]} {[%emt
00:03:23]} 12. Nc2 {[%clk 01:07:35]} {[%emt 00:03:16]} Bf5 {[%clk 01:16:35]}
{[%emt 00:04:13]} 13. a3 {[%clk 01:02:21]} {[%emt 00:05:45]} Qd7 {[%clk
01:08:08]} {[%emt 00:08:56]} 14. b4 {[%clk 00:53:58]} {[%emt 00:08:51]} O-O-O
{[%clk 00:59:17]} {[%emt 00:09:23]} 15. b5 {[%clk 00:53:11]} {[%emt 00:01:17]}
Na5 {[%clk 00:57:28]} {[%emt 00:02:19]} 16. Nb4 {[%clk 00:52:35]} {[%emt
00:01:06]} Be6 {[%clk 00:53:55]} {[%emt 00:04:03]} 17. Qa4 {[%clk 00:52:13]}
{[%emt 00:00:51]} Qc7 {[%clk 00:52:56]} {[%emt 00:01:30]} 18. Bd2 {[%clk
00:49:53]} {[%emt 00:02:50]} Nc4 {[%clk 00:47:10]} {[%emt 00:06:16]} 19. Rfc1
{[%clk 00:45:57]} {[%emt 00:04:25]} Bxb4 {[%clk 00:33:27]} {[%emt 00:14:12]} 20.
Qxb4 {[%clk 00:41:00]} {[%emt 00:05:29]} Kb8 {[%clk 00:32:40]} {[%emt
00:01:17]} 21. Be1 {[%clk 00:40:16]} {[%emt 00:01:13]} Rhe8 {[%clk 00:27:32]}
{[%emt 00:05:37]} 22. a4 {[%clk 00:37:13]} {[%emt 00:03:34]} Qb6 {[%clk
00:23:41]} {[%emt 00:04:21]} 23. Rd1 {[%clk 00:34:51]} {[%emt 00:02:52]} a5
{[%clk 00:22:37]} {[%emt 00:01:34]} 24. Qb3 {[%clk 00:33:15]} {[%emt 00:02:06]}
h5 {[%clk 00:20:23]} {[%emt 00:02:45]} 25. Kh1 {[%clk 00:21:02]} {[%emt
00:12:42]} h4 {[%clk 00:18:58]} {[%emt 00:01:56]} 26. Ne2 {[%clk 00:19:50]}
{[%emt 00:01:42]} Bg4 {[%clk 00:16:37]} {[%emt 00:02:51]} 27. f3 {[%clk
00:15:04]} {[%emt 00:05:16]} Be6 {[%clk 00:16:37]} {[%emt 00:00:30]} 28. Bf2
{[%clk 00:14:51]} {[%emt 00:00:44]} Rh8 {[%clk 00:15:25]} {[%emt 00:01:42]} 29.
h3 {[%clk 00:14:34]} {[%emt 00:00:46]} Rc8 {[%clk 00:15:40]} {[%emt 00:00:16]}
30. Rac1 {[%clk 00:14:08]} {[%emt 00:00:55]} Qc7 {[%clk 00:14:43]} {[%emt
00:01:28]} 31. Nc3 {[%clk 00:11:57]} {[%emt 00:02:40]} b6 {[%clk 00:14:38]}
{[%emt 00:00:35]} 32. Rc2 {[%clk 00:07:51]} {[%emt 00:04:37]} Qd7 {[%clk
00:14:06]} {[%emt 00:01:02]} 33. Kg1 {[%clk 00:07:02]} {[%emt 00:01:19]} Rc7
{[%clk 00:13:38]} {[%emt 00:00:58]} 34. Nb1 {[%clk 00:05:03]} {[%emt 00:02:29]}
Rhc8 {[%clk 00:07:49]} {[%emt 00:06:19]} 35. Rdc1 {[%clk 00:05:21]} {[%emt
00:00:12]} Qe7 {[%clk 00:06:41]} {[%emt 00:01:38]} 36. Be1 {[%clk 00:02:29]}
{[%emt 00:03:22]} Bf5 {[%clk 00:05:37]} {[%emt 00:01:34]} 37. Re2 {[%clk
00:01:48]} {[%emt 00:01:10]} Be6 {[%clk 00:04:40]} {[%emt 00:01:27]} 38. Rec2
{[%clk 00:01:43]} {[%emt 00:00:36]} Bf5 {[%clk 00:04:08]} {[%emt 00:01:01]} 39.
Re2 {[%clk 00:02:08]} {[%emt 00:00:05]} Qe6 {[%clk 00:03:38]} {[%emt 00:01:00]}
40. Nc3 {[%emt 00:01:58]} Ne3 {[%clk 00:01:44]} {[%emt 00:02:23]} 41. Bd2
{[%clk 00:29:43]} {[%emt 00:01:29]} Nc4 {[%clk 00:31:24]} {[%emt 00:00:51]} 42.
Be1 {[%clk 00:29:49]} {[%emt 00:00:24]} Kb7 {[%clk 00:29:26]} {[%emt 00:02:28]}
43. Nd1 {[%clk 00:23:00]} {[%emt 00:07:28]} Qe7 {[%clk 00:27:31]} {[%emt
00:02:26]} 44. Nc3 {[%clk 00:17:53]} {[%emt 00:05:37]} Be6 {[%clk 00:27:50]}
{[%emt 00:00:10]} 45. Nb1 {[%clk 00:16:32]} {[%emt 00:01:52]} Ne3 {[%clk
00:24:22]} {[%emt 00:03:58]} 46. Rxc7+ {[%clk 00:15:42]} {[%emt 00:01:19]} Qxc7
{[%clk 00:23:58]} {[%emt 00:00:54]} 47. Bd2 {[%clk 00:15:31]} {[%emt 00:00:41]}
Qc4 {[%clk 00:21:04]} {[%emt 00:03:25]} 48. Qxc4 {[%clk 00:15:01]} {[%emt
00:00:59]} Rxc4 {[%clk 00:20:50]} {[%emt 00:00:43]} 49. Bxe3 {[%clk 00:10:57]}
{[%emt 00:04:34]} fxe3 {[%clk 00:21:14]} {[%emt 00:00:06]} 50. Na3 {[%clk
00:09:41]} {[%emt 00:01:46]} Rxd4 {[%clk 00:19:25]} {[%emt 00:02:18]} 51. Rxe3
{[%clk 00:09:18]} {[%emt 00:00:53]} Rxa4 {[%clk 00:19:39]} {[%emt 00:00:16]} 52.
Kf2 {[%clk 00:07:45]} {[%emt 00:02:03]} Bf5 {[%clk 00:18:55]} {[%emt 00:01:14]}
53. Ke1 {[%clk 00:06:02]} {[%emt 00:02:13]} Rd4 {[%clk 00:10:56]} {[%emt
00:08:28]} 54. Ke2 {[%clk 00:05:44]} {[%emt 00:00:48]} Rb4 {[%clk 00:08:18]}
{[%emt 00:03:09]} 55. Rc3 {[%clk 00:02:18]} {[%emt 00:03:56]} Rb2+ {[%clk
00:07:32]} {[%emt 00:01:16]} 56. Kf1 {[%clk 00:02:42]} {[%emt 00:00:05]} Bd7
{[%clk 00:06:59]} {[%emt 00:01:04]} 57. f4 {[%clk 00:02:32]} {[%emt 00:00:40]}
gxf4 {[%clk 00:06:35]} {[%emt 00:00:54]} 58. Rf3 {[%clk 00:02:31]} {[%emt
00:00:31]} Rb4 {[%clk 00:06:21]} {[%emt 00:00:43]} 59. Ke2 {[%clk 00:01:56]}
{[%emt 00:01:05]} a4 {[%clk 00:04:36]} {[%emt 00:02:16]} 60. Nc2 {[%clk
00:01:42]} {[%emt 00:00:44]} Bxb5+ {[%clk 00:04:44]} {[%emt 00:00:21]} 61. Kd2
{[%clk 00:01:48]} {[%emt 00:00:24]} Re4 {[%clk 00:05:00]} {[%emt 00:00:15]} 62.
Kc3 {[%clk 00:01:41]} {[%emt 00:00:37]} Bd7 {[%clk 00:04:50]} {[%emt 00:00:40]}
63. Kb2 {[%clk 00:01:18]} {[%emt 00:00:54]} b5 {[%clk 00:04:04]} {[%emt
00:01:15]} 64. Ka3 {[%clk 00:01:05]} {[%emt 00:00:42]} Be6 {[%clk 00:03:27]}
{[%emt 00:01:08]} 65. Rf2 {[%clk 00:01:07]} {[%emt 00:00:28]} Rc4 {[%clk
00:03:25]} {[%emt 00:00:32]} 66. Kb2 {[%clk 00:01:01]} {[%emt 00:00:36]} b4
{[%clk 00:03:33]} {[%emt 00:00:22]} 67. Ne1 {[%emt 00:01:40]} Bf5 {[%clk
00:03:05]} 68. Nf3 {[%clk 00:01:04]} {[%emt 00:00:15]} b3 {[%clk 00:02:44]}
{[%emt 00:00:50]} 69. Nxh4 {[%clk 00:00:54]} {[%emt 00:00:40]} Rc2+ {[%clk
00:02:30]} {[%emt 00:00:45]} 70. Rxc2 {[%clk 00:01:19]} {[%emt 00:00:04]} Bxc2
{[%clk 00:02:49]} {[%emt 00:00:11]} 71. Nf3 {[%clk 00:01:35]} {[%emt 00:00:14]}
Be4 {[%clk 00:02:33]} {[%emt 00:00:46]} 72. h4 {[%clk 00:01:20]} {[%emt
00:00:45]} Kc7 {[%clk 00:02:25]} {[%emt 00:00:38]} 73. h5 {[%clk 00:01:39]}
{[%emt 00:00:11]} Kd7 {[%clk 00:02:11]} {[%emt 00:00:44]} 74. h6 {[%clk
00:02:06]} {[%emt 00:00:03]} Ke7 {[%clk 00:02:18]} {[%emt 00:00:23]} 75. Ng5
{[%clk 00:02:16]} {[%emt 00:00:21]} Kf8 {[%clk 00:02:02]} {[%emt 00:00:47]} 76.
h7 {[%clk 00:02:08]} {[%emt 00:00:37]} Kg7 {[%clk 00:02:26]} {[%emt 00:00:07]}
77. Nxf7 {[%clk 00:02:31]} {[%emt 00:00:07]} Bxh7 {[%clk 00:02:28]} {[%emt
00:00:27]} 78. e6 {[%clk 00:01:52]} {[%emt 00:01:10]} Kf6 {[%clk 00:02:41]}
{[%emt 00:00:17]} 79. Ka3 {[%clk 00:02:05]} {[%emt 00:00:17]} Bf5 {[%clk
00:02:38]} {[%emt 00:00:33]} 0-1

[Event "Hoogeveen Open 2023"]
[Site "Hoogeveen, Netherlands"]
[Date "2023.10.28"]
[Round "9.10"]
[White "Van Kooten, Luuk"]
[Black "Arnold, Rhys"]
[Result "1/2-1/2"]
[TimeControl "90min/40moves + 30min + 30sec/move"]
[WhiteFideId "1006533"]
[BlackFideId "1068849"]
[WhiteElo "2255"]
[BlackElo "2087"]

1. d4 {[%clk 01:30:54]} {[%emt 00:00:05]} d5 {[%clk 01:30:54]} {[%emt
00:00:06]} 2. c4 {[%clk 01:31:11]} {[%emt 00:00:12]} e6 {[%clk 01:31:23]}
{[%emt 00:00:03]} 3. Nc3 {[%clk 01:31:27]} {[%emt 00:00:14]} a6 {[%clk
01:31:50]} {[%emt 00:00:03]} 4. e4 {[%clk 01:29:42]} {[%emt 00:02:15]} dxe4
{[%clk 01:29:31]} {[%emt 00:02:49]} 5. Nxe4 {[%clk 01:29:51]} {[%emt 00:00:19]}
Bb4+ {[%clk 01:29:59]} {[%emt 00:00:03]} 6. Nc3 {[%clk 01:29:30]} {[%emt
00:00:51]} c5 {[%clk 01:29:40]} {[%emt 00:00:49]} 7. a3 {[%clk 01:27:12]}
{[%emt 00:02:48]} Ba5 {[%clk 01:29:44]} {[%emt 00:00:25]} 8. Be3 {[%clk
01:21:26]} {[%emt 00:06:15]} Ne7 {[%clk 01:28:44]} {[%emt 00:01:31]} 9. Nf3
{[%clk 01:12:40]} {[%emt 00:09:16]} O-O {[%clk 01:21:37]} {[%emt 00:07:36]} 10.
Bd3 {[%clk 01:10:45]} {[%emt 00:02:26]} h6 {[%clk 01:17:37]} {[%emt 00:04:30]}
11. O-O {[%clk 01:06:24]} {[%emt 00:04:52]} cxd4 {[%clk 01:12:44]} {[%emt
00:05:22]} 12. Nxd4 {[%clk 01:04:42]} {[%emt 00:02:12]} Bxc3 {[%clk 01:11:20]}
{[%emt 00:01:54]} 13. bxc3 {[%clk 01:05:07]} {[%emt 00:00:05]} e5 {[%clk
01:11:39]} {[%emt 00:00:11]} 14. Nb3 {[%clk 00:58:36]} {[%emt 00:07:00]} Qc7
{[%clk 01:04:09]} {[%emt 00:08:01]} 15. Qc2 {[%clk 00:56:52]} {[%emt 00:02:13]}
Bd7 {[%clk 00:53:01]} {[%emt 00:11:39]} 16. f4 {[%clk 00:49:27]} {[%emt
00:07:55]} Ba4 {[%clk 00:47:41]} {[%emt 00:05:50]} 17. Qb2 {[%clk 00:45:13]}
{[%emt 00:04:44]} exf4 {[%clk 00:46:06]} {[%emt 00:02:07]} 18. Rxf4 {[%clk
00:45:00]} {[%emt 00:00:41]} Nd7 {[%clk 00:44:13]} {[%emt 00:02:21]} 19. Nd2
{[%clk 00:38:49]} {[%emt 00:06:42]} Ne5 {[%clk 00:42:26]} {[%emt 00:02:17]} 20.
Be2 {[%clk 00:39:01]} {[%emt 00:00:18]} Rfe8 {[%clk 00:37:25]} {[%emt
00:05:32]} 21. Raf1 {[%clk 00:37:40]} {[%emt 00:01:52]} N7g6 {[%clk 00:36:49]}
{[%emt 00:01:05]} 22. Bb6 {[%clk 00:34:44]} {[%emt 00:03:25]} Qe7 {[%clk
00:36:02]} {[%emt 00:01:18]} 23. R4f2 {[%clk 00:33:32]} {[%emt 00:01:42]} Bc6
{[%clk 00:33:30]} {[%emt 00:03:02]} 24. Bd4 {[%clk 00:30:09]} {[%emt 00:03:53]}
Rac8 {[%clk 00:33:27]} {[%emt 00:00:34]} 25. Qb1 {[%clk 00:26:43]} {[%emt
00:03:55]} Qg5 {[%clk 00:24:19]} {[%emt 00:09:37]} 26. Nf3 {[%clk 00:21:29]}
{[%emt 00:05:44]} Nxf3+ {[%clk 00:23:29]} {[%emt 00:01:21]} 27. Bxf3 {[%clk
00:21:42]} {[%emt 00:00:18]} Bxf3 {[%clk 00:20:14]} {[%emt 00:03:44]} 28. Rxf3
{[%clk 00:21:48]} {[%emt 00:00:24]} Re2 {[%clk 00:19:34]} {[%emt 00:01:10]} 29.
Rg3 {[%clk 00:21:06]} {[%emt 00:01:12]} Qe7 {[%clk 00:19:51]} {[%emt 00:00:13]}
30. h4 {[%clk 00:17:09]} {[%emt 00:04:27]} h5 {[%clk 00:15:11]} {[%emt
00:05:09]} 31. Qf5 {[%clk 00:16:05]} {[%emt 00:01:34]} Re8 {[%clk 00:15:35]}
{[%emt 00:00:07]} 32. Qxh5 {[%clk 00:08:59]} {[%emt 00:07:35]} Re1 {[%clk
00:15:54]} {[%emt 00:00:11]} 33. Rgf3 {[%clk 00:08:30]} {[%emt 00:00:59]} Rxf1+
{[%clk 00:15:57]} {[%emt 00:00:28]} 34. Rxf1 {[%clk 00:08:55]} {[%emt
00:00:05]} Nxh4 {[%clk 00:14:54]} {[%emt 00:01:33]} 35. Qg4 {[%clk 00:07:08]}
{[%emt 00:02:17]} 1/2-1/2

[Event "Hoogeveen Open 2023"]
[Site "Hoogeveen, Netherlands"]
[Date "2023.10.28"]
[Round "9.11"]
[White "Van Rootselaar, Rik"]
[Black "Swati, Ghate"]
[Result "0-1"]
[TimeControl "90min/40moves + 30min + 30sec/move"]
[WhiteFideId "1088572"]
[BlackFideId "5003474"]
[WhiteElo "2015"]
[BlackElo "1995"]

1. d4 {[%clk 01:30:56]} {[%emt 00:00:03]} Nf6 {[%clk 01:30:25]} {[%emt
00:00:36]} 2. c4 {[%clk 01:31:17]} {[%emt 00:00:09]} e6 {[%clk 01:30:46]}
{[%emt 00:00:09]} 3. g3 {[%clk 01:31:09]} {[%emt 00:00:38]} d5 {[%clk
01:30:31]} {[%emt 00:00:46]} 4. Bg2 {[%clk 01:31:17]} {[%emt 00:00:20]} Bb4+
{[%clk 01:30:03]} {[%emt 00:00:59]} 5. Nd2 {[%clk 01:31:27]} {[%emt 00:00:19]}
O-O {[%clk 01:29:49]} {[%emt 00:00:44]} 6. Ngf3 {[%clk 01:31:32]} {[%emt
00:00:25]} dxc4 {[%clk 01:25:29]} {[%emt 00:04:51]} 7. Qc2 {[%clk 01:31:37]}
{[%emt 00:00:24]} b5 {[%clk 01:18:33]} {[%emt 00:07:28]} 8. a4 {[%clk
01:30:52]} {[%emt 00:01:15]} c6 {[%clk 01:18:52]} {[%emt 00:00:11]} 9. axb5
{[%clk 01:30:44]} {[%emt 00:00:37]} Bb7 {[%clk 01:15:18]} {[%emt 00:04:04]} 10.
Qxc4 {[%clk 01:24:48]} {[%emt 00:06:26]} Qd6 {[%clk 01:15:05]} {[%emt
00:00:44]} 11. O-O {[%clk 01:23:11]} {[%emt 00:02:05]} a5 {[%clk 01:11:46]}
{[%emt 00:03:50]} 12. bxa6 {[%clk 01:17:02]} {[%emt 00:06:39]} Bxa6 {[%clk
01:01:02]} {[%emt 00:11:14]} 13. Qb3 {[%clk 01:16:26]} {[%emt 00:01:06]} Nbd7
{[%clk 01:00:21]} {[%emt 00:01:11]} 14. Ra4 {[%clk 01:01:29]} {[%emt 00:15:27]}
Bxd2 {[%clk 00:49:00]} {[%emt 00:11:51]} 15. Bxd2 {[%clk 01:01:34]} {[%emt
00:00:25]} Bxe2 {[%clk 00:49:23]} {[%emt 00:00:07]} 16. Rxa8 {[%clk 00:48:27]}
Rxa8 {[%clk 00:49:26]} {[%emt 00:14:04]} 17. Bf4 {[%clk 00:48:07]} {[%emt
00:00:49]} Qf8 {[%clk 00:46:40]} {[%emt 00:03:17]} 18. Rc1 {[%clk 00:47:24]}
{[%emt 00:01:12]} Nd5 {[%clk 00:40:22]} {[%emt 00:06:49]} 19. Qc2 {[%clk
00:35:00]} {[%emt 00:12:53]} Bb5 {[%clk 00:37:01]} {[%emt 00:03:52]} 20. Bd2
{[%clk 00:32:28]} {[%emt 00:03:01]} h6 {[%clk 00:33:41]} {[%emt 00:03:50]} 21.
h4 {[%clk 00:30:33]} {[%emt 00:02:25]} Qb8 {[%clk 00:32:40]} {[%emt 00:01:32]}
22. g4 {[%clk 00:27:39]} {[%emt 00:03:24]} Nf4 {[%clk 00:28:55]} {[%emt
00:04:15]} 23. Bxf4 {[%clk 00:24:39]} {[%emt 00:03:30]} Qxf4 {[%clk 00:29:18]}
{[%emt 00:00:07]} 24. g5 {[%clk 00:24:13]} {[%emt 00:00:56]} hxg5 {[%clk
00:27:45]} {[%emt 00:02:03]} 25. hxg5 {[%clk 00:24:31]} {[%emt 00:00:12]} Nf8
{[%clk 00:26:03]} {[%emt 00:02:12]} 26. Qd2 {[%clk 00:20:41]} {[%emt 00:04:20]}
Ng6 {[%clk 00:17:02]} {[%emt 00:09:31]} 27. Qxf4 {[%clk 00:16:00]} {[%emt
00:05:11]} Nxf4 {[%clk 00:17:30]} {[%emt 00:00:02]} 28. Rd1 {[%clk 00:15:11]}
{[%emt 00:01:18]} f6 {[%clk 00:09:47]} {[%emt 00:08:13]} 29. Kh2 {[%clk
00:12:49]} {[%emt 00:02:52]} Kf7 {[%clk 00:09:09]} {[%emt 00:01:09]} 30. Bf1
{[%clk 00:10:41]} {[%emt 00:02:37]} Bxf1 {[%clk 00:08:16]} {[%emt 00:01:23]} 31.
Rxf1 {[%clk 00:11:09]} {[%emt 00:00:03]} Rb8 {[%clk 00:08:45]} {[%emt
00:00:01]} 32. Rb1 {[%clk 00:08:34]} {[%emt 00:03:04]} Rb3 {[%clk 00:08:41]}
{[%emt 00:00:35]} 33. Kg3 {[%clk 00:08:02]} {[%emt 00:01:02]} Ne2+ {[%clk
00:08:04]} {[%emt 00:01:07]} 34. Kg2 {[%clk 00:08:08]} {[%emt 00:00:23]} Nf4+
{[%clk 00:07:12]} {[%emt 00:01:23]} 35. Kg3 {[%clk 00:08:32]} {[%emt 00:00:06]}
Ne2+ {[%clk 00:07:39]} {[%emt 00:00:03]} 36. Kg2 {[%clk 00:08:55]} {[%emt
00:00:06]} Rd3 {[%clk 00:07:56]} {[%emt 00:00:13]} 37. gxf6 {[%clk 00:08:03]}
{[%emt 00:01:23]} gxf6 {[%clk 00:06:17]} {[%emt 00:02:09]} 38. b4 {[%clk
00:06:53]} {[%emt 00:01:39]} Nxd4 {[%clk 00:06:16]} {[%emt 00:00:31]} 39. Nxd4
{[%clk 00:07:13]} {[%emt 00:00:11]} Rxd4 {[%clk 00:06:43]} {[%emt 00:00:03]} 40.
b5 {[%clk 00:06:26]} {[%emt 00:01:17]} cxb5 {[%clk 00:07:06]} {[%emt 00:00:06]}
41. Rxb5 {[%clk 00:06:37]} {[%emt 00:00:20]} Kg6 {[%clk 00:07:27]} {[%emt
00:00:08]} 42. Kf3 {[%clk 00:06:07]} {[%emt 00:00:59]} e5 {[%clk 00:07:44]}
{[%emt 00:00:14]} 43. Rb8 {[%clk 00:27:55]} {[%emt 00:08:42]} Kf5 {[%clk
00:37:54]} {[%emt 00:00:19]} 44. Rb3 {[%clk 00:24:44]} {[%emt 00:03:41]} Ra4
{[%clk 00:38:09]} {[%emt 00:00:16]} 45. Rc3 {[%clk 00:24:34]} {[%emt 00:00:39]}
Ra2 {[%clk 00:35:29]} {[%emt 00:03:10]} 46. Rb3 {[%clk 00:24:22]} {[%emt
00:00:42]} Kg5 {[%clk 00:35:46]} {[%emt 00:00:13]} 47. Rb5 {[%clk 00:21:52]}
{[%emt 00:03:01]} Ra3+ {[%clk 00:35:22]} {[%emt 00:00:55]} 48. Ke4 {[%clk
00:21:44]} {[%emt 00:00:37]} Kg4 {[%clk 00:35:15]} {[%emt 00:00:37]} 49. Rb8
{[%clk 00:21:02]} {[%emt 00:01:12]} Ra4+ {[%clk 00:27:09]} {[%emt 00:08:36]} 50.
Ke3 {[%clk 00:21:16]} {[%emt 00:00:15]} Rc4 {[%clk 00:27:04]} {[%emt 00:00:35]}
51. Ra8 {[%clk 00:19:11]} {[%emt 00:02:36]} Rc1 {[%clk 00:26:18]} {[%emt
00:01:13]} 52. Ra4+ {[%clk 00:18:11]} {[%emt 00:01:32]} Kg5 {[%clk 00:26:15]}
{[%emt 00:00:33]} 53. Ra5 {[%clk 00:17:49]} {[%emt 00:00:52]} Re1+ {[%clk
00:25:53]} {[%emt 00:00:52]} 54. Kf3 {[%clk 00:14:22]} {[%emt 00:03:58]} f5
{[%clk 00:25:58]} {[%emt 00:00:25]} 55. Ra8 {[%clk 00:14:01]} {[%emt 00:00:51]}
e4+ {[%clk 00:25:52]} {[%emt 00:00:36]} 56. Kg2 {[%clk 00:14:26]} {[%emt
00:00:04]} Kg4 {[%clk 00:22:59]} {[%emt 00:03:23]} 57. Ra4 {[%clk 00:13:34]}
{[%emt 00:01:22]} Re2 {[%clk 00:21:34]} {[%emt 00:01:56]} 58. Ra3 {[%clk
00:11:34]} {[%emt 00:02:31]} f4 {[%clk 00:21:18]} {[%emt 00:00:46]} 59. Kf1
{[%clk 00:11:21]} {[%emt 00:00:42]} Rb2 {[%clk 00:20:18]} {[%emt 00:01:29]} 60.
Ke1 {[%clk 00:09:26]} {[%emt 00:02:26]} Rb1+ {[%clk 00:19:17]} {[%emt
00:01:30]} 61. Kd2 {[%clk 00:08:46]} {[%emt 00:01:10]} e3+ {[%clk 00:17:53]}
{[%emt 00:01:54]} 62. fxe3 {[%clk 00:08:54]} {[%emt 00:00:22]} f3 {[%clk
00:18:22]} 63. Ra8 {[%clk 00:08:06]} {[%emt 00:01:19]} f2 {[%clk 00:18:43]}
{[%emt 00:00:09]} 64. Rg8+ {[%clk 00:08:24]} {[%emt 00:00:12]} Kh5 {[%clk
00:19:07]} {[%emt 00:00:06]} 0-1

[Event "Hoogeveen Open 2023"]
[Site "Hoogeveen, Netherlands"]
[Date "2023.10.28"]
[Round "9.12"]
[White "Mueer, Sebastian"]
[Black "Maris, Ivo"]
[Result "0-1"]
[TimeControl "90min/40moves + 30min + 30sec/move"]
[WhiteFideId "24622001"]
[BlackFideId "1028146"]
[WhiteElo "2230"]
[BlackElo "2404"]

1. e4 {[%clk 01:18:37]} {[%emt 00:12:22]} d6 {[%clk 01:30:18]} {[%emt
00:00:43]} 2. d4 {[%clk 01:18:50]} {[%emt 00:00:16]} Nf6 {[%clk 01:30:42]}
{[%emt 00:00:06]} 3. Nc3 {[%clk 01:18:59]} {[%emt 00:00:21]} e5 {[%clk
01:31:08]} {[%emt 00:00:05]} 4. Nf3 {[%clk 01:18:32]} {[%emt 00:00:56]} Nbd7
{[%clk 01:31:34]} {[%emt 00:00:04]} 5. Rg1 {[%clk 01:18:51]} {[%emt 00:00:11]}
c6 {[%clk 01:24:54]} {[%emt 00:07:10]} 6. g4 {[%clk 01:18:41]} {[%emt
00:00:39]} g6 {[%clk 01:25:00]} {[%emt 00:00:24]} 7. g5 {[%clk 01:18:17]}
{[%emt 00:00:54]} Nh5 {[%clk 01:25:26]} {[%emt 00:00:05]} 8. Be3 {[%clk
01:18:21]} {[%emt 00:00:26]} b5 {[%clk 01:23:38]} {[%emt 00:02:18]} 9. a3
{[%clk 01:14:56]} {[%emt 00:03:55]} a6 {[%clk 01:21:33]} {[%emt 00:02:35]} 10.
Qd2 {[%clk 01:13:56]} {[%emt 00:01:30]} Qc7 {[%clk 01:21:19]} {[%emt 00:00:44]}
11. O-O-O {[%clk 01:12:01]} {[%emt 00:02:24]} Be7 {[%clk 01:19:31]} {[%emt
00:02:17]} 12. Be2 {[%clk 00:41:54]} {[%emt 00:30:38]} Rb8 {[%clk 01:16:42]}
{[%emt 00:03:19]} 13. Ne1 {[%clk 00:39:19]} {[%emt 00:03:05]} a5 {[%clk
01:16:15]} {[%emt 00:00:56]} 14. d5 {[%clk 00:37:13]} {[%emt 00:02:38]} b4
{[%clk 01:16:35]} {[%emt 00:00:10]} 15. dxc6 {[%clk 00:36:18]} {[%emt
00:01:24]} bxc3 {[%clk 01:13:55]} {[%emt 00:03:10]} 16. Qxc3 {[%clk 00:26:57]}
{[%emt 00:09:51]} Nb6 {[%clk 01:12:24]} {[%emt 00:02:00]} 17. Qxa5 {[%clk
00:22:28]} {[%emt 00:05:00]} O-O {[%clk 01:12:46]} {[%emt 00:00:08]} 18. Bb5
{[%clk 00:21:58]} {[%emt 00:01:01]} Be6 {[%clk 01:12:26]} {[%emt 00:00:49]} 19.
Nd3 {[%clk 00:21:45]} {[%emt 00:00:43]} d5 {[%clk 01:10:48]} {[%emt 00:02:09]}
20. Nxe5 {[%clk 00:15:36]} {[%emt 00:06:40]} Qxe5 {[%clk 01:09:08]} {[%emt
00:02:09]} 21. Bxb6 {[%clk 00:16:04]} {[%emt 00:00:02]} dxe4 {[%clk 01:08:18]}
{[%emt 00:01:19]} 22. a4 {[%clk 00:12:55]} {[%emt 00:03:39]} Ra8 {[%clk
01:06:33]} {[%emt 00:02:15]} 23. Bc7 {[%clk 00:11:48]} {[%emt 00:01:37]} Qf5
{[%clk 01:03:51]} {[%emt 00:03:12]} 24. Qe1 {[%clk 00:09:34]} {[%emt 00:02:45]}
Bxg5+ {[%clk 01:01:43]} {[%emt 00:02:38]} 25. Kb1 {[%clk 00:10:02]} {[%emt
00:00:01]} Ba2+ {[%clk 01:01:18]} {[%emt 00:00:54]} 26. Ka1 {[%clk 00:09:53]}
{[%emt 00:00:38]} Bc4 {[%clk 01:00:24]} {[%emt 00:01:26]} 0-1